fUST/lending_fUST_20250224
["ID","MTS","AMOUNT","RATE_DAILY","PERIOD"]
[354271726,1740382247935,-500.0,0.00013977,2]
[354271727,1740382247944,-500.0,0.00013977,2]
[354271728,1740382247953,-500.0,0.00013977,2]
[354271729,1740382247962,-500.0,0.00013977,2]
[354271730,1740382247972,-505.32411389,0.00013977,2]
[354271731,1740382247982,-458.8071015,0.00013977,2]
[354271732,1740382247991,-500.0,0.00013977,2]
[354271733,1740382248078,-500.0,0.00013977,2]
[354271734,1740382248090,-500.0,0.00013977,2]
[354271735,1740382248099,-500.0,0.00013977,2]
[354271736,1740382248109,-459.0599981,0.00013977,2]
[354271737,1740382248119,-500.0,0.00013977,2]
[354271738,1740382248128,-500.0,0.00013977,2]
[354271739,1740382248139,-500.0,0.00013977,2]
[354271740,1740382248152,-500.0,0.00013977,2]
[354271741,1740382248162,-500.0,0.00013978,2]
[354271742,1740382248171,-547.3,0.00013978,2]
[354271743,1740382248181,-500.0,0.00013978,2]
[354271744,1740382248191,-500.0,0.00013978,2]
[354271745,1740382248200,-406.69970543,0.0001399,2]
[354271746,1740382248209,-4098.98100988,0.0001399,2]
[354271747,1740382248219,-151.0,0.00013992,2]
[354271748,1740382248229,-5371.92,0.00013997,2]
[354271749,1740382248239,-5371.92,0.00013997,2]
[354271750,1740382248249,-5371.92,0.00013997,2]
[354271751,1740382248258,-5371.92,0.00013998,2]
[354271752,1740382248273,-5371.92,0.00013998,2]
[354271753,1740382248283,-5371.92,0.00013998,2]
[354271754,1740382248292,-5371.92,0.00013998,2]
[354271755,1740382248302,-5371.92,0.00013998,2]
[354271756,1740382248311,-5371.92,0.00013998,2]
[354271757,1740382248321,-5371.92,0.00013998,2]
[354271758,1740382248331,-5371.92,0.00013998,2]
[354271759,1740382248342,-5371.92,0.00013998,2]
[354271760,1740382248351,-5372.10691823,0.00013998,2]
[354271761,1740382248361,-137068.05198375,0.00014,2]
[354271762,1740382248477,-1024.30871454,0.00014,2]
[354271763,1740382248622,-500.0,0.00013698,2]
[354271764,1740382248631,-502.62877768,0.0001378,2]
[354271765,1740382248641,-500.0,0.0001378,2]
[354271766,1740382248651,-500.0,0.00013894,2]
[354271767,1740382248661,-567.22,0.00013976,2]
[354271768,1740382248670,-345766.85170948,0.00014,2]
[354271769,1740382248679,-151.0,0.00014,2]
[354271770,1740382248688,-151.0,0.00014,2]
[354271771,1740382248698,-151.0,0.00014,2]
[354271772,1740382248707,-151.0,0.00014,2]
[354271773,1740382248717,-2254839.35042185,0.00014,15]
[354271774,1740382248974,-500.0,0.00012887,2]
[354271775,1740382610504,10000.0,0.00019,120]
[354271776,1740382624405,10000.0,0.00012,30]
[354271777,1740382672256,1218.0,0.00012,30]
[354271782,1740383041057,500.0,0.00019,120]
[354271783,1740383226337,201.834654,9.041e-05,2]
[354271833,1740383432490,-251.91759999,0.00012539,2]
[354271837,1740383432551,-48.08240001,0.00012539,2]
[354271838,1740383432560,-7048.3066104,0.0001254,2]
[354271839,1740383432600,-2400.69903737,0.0001254,2]
[354271870,1740383438248,-5492.0029401,0.00012673,2]
[354271872,1740383438257,-260.72045439,0.00012767,2]
[354271874,1740383438266,-501.94783142,0.00013673,2]
[354271876,1740383438278,-500.0,0.00013673,2]
[354271878,1740383438287,-500.0,0.00013673,2]
[354271880,1740383438296,-500.0,0.00013673,2]
[354271882,1740383438305,-151.0,0.0001369,2]
[354271884,1740383438313,-500.0,0.00013698,2]
[354271886,1740383438322,-500.0,0.00013698,2]
[354271888,1740383438331,-500.0,0.00013698,2]
[354271890,1740383438340,-281.37705911,0.00013698,2]
[354271892,1740383438349,-500.0,0.00013698,2]
[354271894,1740383438358,-291.61299902,0.00013698,2]
[354271896,1740383438368,-500.0,0.00013698,2]
[354271898,1740383438377,-502.07399454,0.00013698,2]
[354271900,1740383438386,-500.0,0.00013698,2]
[354271902,1740383438395,-500.0,0.00013698,2]
[354271904,1740383438404,-500.0,0.00013698,2]
[354271905,1740383438413,-500.0,0.00013698,2]
[354271907,1740383438422,-500.0,0.00013698,2]
[354271909,1740383438431,-500.0,0.00013698,2]
[354271911,1740383438440,-500.0,0.00013698,2]
[354271912,1740383438449,-500.0,0.00013698,2]
[354271914,1740383438459,-500.0,0.00013698,2]
[354271915,1740383438468,-369.71344634,0.00013698,2]
[354271916,1740383438477,-500.0,0.00013698,2]
[354271917,1740383438486,-500.0,0.00013698,2]
[354271918,1740383438495,-500.0,0.00013698,2]
[354271919,1740383438505,-500.0,0.00013698,2]
[354271920,1740383438514,-500.0,0.00013698,2]
[354271921,1740383438523,-277.8004232,0.00013698,2]
[354271922,1740383438536,-500.0,0.00013698,2]
[354271923,1740383438545,-500.0,0.00013698,2]
[354271924,1740383438555,-500.0,0.00013698,2]
[354271925,1740383438564,-500.0,0.00013698,2]
[354271926,1740383438574,-482.59456722,0.00013698,2]
[354271927,1740383438583,-500.0,0.00013698,2]
[354271928,1740383438592,-500.0,0.00013698,2]
[354271929,1740383438602,-500.0,0.00013698,2]
[354271930,1740383438611,-500.0,0.00013698,2]
[354271931,1740383438620,-501.30019048,0.00013698,2]
[354271932,1740383438629,-500.0,0.00013698,2]
[354271933,1740383438735,-500.0,0.00013698,2]
[354271934,1740383438745,-502.68863654,0.00013698,2]
[354271935,1740383438755,-613.45394911,0.00013698,2]
[354271936,1740383438765,-502.77624857,0.00013698,2]
[354271937,1740383438774,-501.69350512,0.00013698,2]
[354271938,1740383438783,-632.96803381,0.00013698,2]
[354271939,1740383438792,-500.0,0.00013698,2]
[354271940,1740383438801,-448.24868411,0.00013698,2]
[354271941,1740383438810,-500.0,0.00013698,2]
[354271942,1740383438819,-500.0,0.00013698,2]
[354271943,1740383438827,-500.0,0.00013698,2]
[354271944,1740383438836,-500.0,0.00013698,2]
[354271945,1740383438845,-500.0,0.00013698,2]
[354271946,1740383438854,-500.0,0.00013698,2]
[354271947,1740383438863,-500.0,0.00013698,2]
[354271948,1740383438872,-500.0,0.00013698,2]
[354271949,1740383438881,-500.0,0.00013698,2]
[354271950,1740383438890,-500.0,0.00013698,2]
[354271951,1740383438899,-500.0,0.00013698,2]
[354271952,1740383438908,-500.0,0.00013698,2]
[354271953,1740383438917,-500.0,0.00013698,2]
[354271954,1740383438926,-500.0,0.00013698,2]
[354271955,1740383438935,-500.0,0.00013698,2]
[354271956,1740383438944,-514.17489971,0.00013698,2]
[354271957,1740383438954,-860.36,0.00013698,2]
[354271958,1740383438963,-500.0,0.00013698,2]
[354271959,1740383438971,-500.0,0.00013698,2]
[354271960,1740383438981,-500.0,0.00013698,2]
[354271961,1740383438990,-1000.0,0.00013698,2]
[354271962,1740383439000,-500.0,0.00013698,2]
[354271963,1740383439009,-502.00568794,0.00013698,2]
[354271964,1740383439018,-500.0,0.00013698,2]
[354271965,1740383439027,-500.0,0.00013698,2]
[354271966,1740383439036,-500.0,0.00013698,2]
[354271967,1740383439045,-500.0,0.00013698,2]
[354271968,1740383439054,-500.0,0.00013698,2]
[354271969,1740383439063,-500.0,0.00013698,2]
[354271970,1740383439072,-500.0,0.00013698,2]
[354271971,1740383439081,-500.0,0.00013698,2]
[354271972,1740383439091,-502.35489758,0.00013698,2]
[354271973,1740383439100,-503.974414,0.00013698,2]
[354271974,1740383439109,-500.0,0.00013698,2]
[354271975,1740383439118,-500.0,0.00013698,2]
[354271976,1740383439127,-500.0,0.00013698,2]
[354271977,1740383439137,-500.0,0.00013698,2]
[354271978,1740383439146,-500.0,0.00013698,2]
[354271979,1740383439155,-370.51967649,0.00013698,2]
[354271980,1740383439164,-500.0,0.00013698,2]
[354271981,1740383439174,-522.99923285,0.00013698,2]
[354271982,1740383439183,-500.0,0.00013698,2]
[354271983,1740383439192,-603.873712,0.00013698,2]
[354271984,1740383439201,-500.0,0.00013698,2]
[354271985,1740383439211,-329.03128532,0.00013698,2]
[354271986,1740383439220,-505.00621799,0.00013698,2]
[354271987,1740383439229,-500.0,0.00013698,2]
[354271988,1740383439239,-500.0,0.00013698,2]
[354271989,1740383439248,-500.0,0.00013698,2]
[354271990,1740383439257,-504.72049721,0.00013698,2]
[354271991,1740383439266,-505.18074205,0.00013698,2]
[354271992,1740383439275,-500.0,0.00013698,2]
[354271993,1740383439284,-500.0,0.00013698,2]
[354271994,1740383439294,-500.0,0.00013698,2]
[354271995,1740383439303,-501.37434676,0.00013698,2]
[354271996,1740383439312,-502.63515538,0.00013698,2]
[354271997,1740383439322,-500.0,0.00013698,2]
[354271998,1740383439331,-500.0,0.00013698,2]
[354271999,1740383439340,-500.0,0.00013698,2]
[354272000,1740383439349,-500.0,0.00013698,2]
[354272001,1740383439359,-500.0,0.00013698,2]
[354272002,1740383439367,-500.0,0.00013698,2]
[354272003,1740383439377,-500.0,0.00013698,2]
[354272004,1740383439387,-500.0,0.00013698,2]
[354272005,1740383439396,-500.0,0.00013698,2]
[354272006,1740383439405,-500.0,0.00013698,2]
[354272007,1740383439414,-500.0,0.00013698,2]
[354272008,1740383439424,-500.0,0.00013698,2]
[354272009,1740383439435,-500.0,0.00013698,2]
[354272010,1740383439445,-500.0,0.00013698,2]
[354272011,1740383439455,-500.0,0.00013698,2]
[354272012,1740383439464,-500.0,0.00013698,2]
[354272013,1740383439474,-626.72267439,0.00013698,2]
[354272014,1740383439483,-500.0,0.00013698,2]
[354272015,1740383439493,-500.0,0.00013698,2]
[354272016,1740383439503,-159.86056434,0.00013698,2]
[354272017,1740383439512,-500.0,0.00013698,2]
[354272018,1740383439522,-500.0,0.00013698,2]
[354272019,1740383439535,-500.0,0.00013698,2]
[354272020,1740383439546,-500.0,0.00013698,2]
[354272021,1740383439555,-502.11549712,0.00013698,2]
[354272022,1740383439564,-500.0,0.00013698,2]
[354272023,1740383439575,-500.0,0.00013698,2]
[354272024,1740383439584,-190.0663758,0.00013698,2]
[354272025,1740383439609,-7453.04616767,0.00012521,2]
[354272029,1740383440515,-591.54463262,0.00012521,2]
[354272030,1740383440526,-994.5,0.00012521,2]
[354272109,1740383446340,-1611.2000001,0.00012521,2]
[354272112,1740383908342,1000.0,0.00019,120]
[354272113,1740383968866,1000.0,0.00019,120]
[354272118,1740384217386,202.037087,9.041e-05,2]
[354272119,1740384461728,500.0,0.0001,2]
[354272217,1740384640686,-19601.91606613,0.00012155,2]
[354272218,1740384640697,-300.0,0.00012174,2]
[354272219,1740384640707,-160.0,0.00012987,3]
[354272220,1740384640718,-1000.0,0.00013,13]
[354272221,1740384640730,-1000.0,0.00013,4]
[354272222,1740384640741,-4758.30499635,0.00013,2]
[354272223,1740384640752,-557.4308118,0.00013,2]
[354272225,1740384640762,-355.3763574,0.00013,2]
[354272226,1740384640772,-154.7242114,0.00013,2]
[354272227,1740384640782,-153.0,0.00013252,2]
[354272228,1740384640793,-306.0,0.000133,2]
[354272229,1740384640802,-153.0,0.000133,2]
[354272230,1740384640812,-308.5906258,0.000133,2]
[354272231,1740384640948,-153.0,0.000133,2]
[354272232,1740384640960,-355.3763574,0.000133,2]
[354272233,1740384640972,-557.4308118,0.000133,2]
[354272234,1740384640981,-420.0,0.00013362,2]
[354272235,1740384640991,-214.30584692,0.00013598,2]
[354272236,1740384641000,-150.43942875,0.00013673,2]
[354272237,1740384641009,-218.47740289,0.00013673,2]
[354272238,1740384641018,-500.0,0.00013673,2]
[354272239,1740384641027,-8564.86755333,0.00013681,2]
[354272240,1740384641036,-196.70894327,0.0001369,2]
[354272241,1740384641046,-15750.87628862,0.00013698,5]
[354272242,1740384641056,-516.50984954,0.00013698,5]
[354272243,1740384641065,-500.0,0.00013698,2]
[354272244,1740384641074,-500.0,0.00013698,2]
[354272245,1740384641083,-582.92141479,0.00013698,2]
[354272246,1740384641092,-500.0,0.00013698,2]
[354272247,1740384641101,-500.0,0.00013698,2]
[354272248,1740384641110,-502.01175989,0.00013698,2]
[354272249,1740384641118,-502.78499067,0.00013698,2]
[354272250,1740384641127,-500.81859712,0.00013698,2]
[354272251,1740384641136,-500.0,0.00013698,2]
[354272252,1740384641145,-501.5745025,0.00013698,2]
[354272253,1740384641154,-513.5795236,0.00013698,2]
[354272254,1740384641163,-518.02801591,0.00013698,2]
[354272255,1740384641171,-503.25836692,0.00013698,2]
[354272256,1740384641181,-500.0,0.00013698,2]
[354272257,1740384641190,-501.10379543,0.00013698,2]
[354272258,1740384641199,-500.0,0.00013698,2]
[354272259,1740384641207,-500.0,0.00013698,2]
[354272260,1740384641217,-500.0,0.00013698,2]
[354272261,1740384641226,-500.0,0.00013698,2]
[354272262,1740384641235,-504.120346,0.00013698,14]
[354272263,1740384641244,-500.0,0.00013698,2]
[354272264,1740384641253,-500.0,0.00013698,2]
[354272265,1740384641262,-504.46757716,0.00013698,2]
[354272266,1740384641271,-500.0,0.00013698,2]
[354272267,1740384641280,-500.0,0.00013698,2]
[354272268,1740384641291,-500.0,0.00013698,2]
[354272269,1740384641299,-500.0,0.00013698,2]
[354272270,1740384641308,-500.0,0.00013698,2]
[354272271,1740384641317,-582.81256684,0.00013698,2]
[354272272,1740384641326,-500.0,0.00013698,2]
[354272273,1740384641336,-503.0886522,0.00013698,2]
[354272274,1740384641344,-387.57255328,0.00013698,2]
[354272275,1740384641354,-315.24369607,0.00013698,2]
[354272276,1740384641363,-500.0,0.00013698,2]
[354272277,1740384641372,-500.0,0.00013698,2]
[354272278,1740384641381,-500.0,0.00013698,2]
[354272279,1740384641390,-500.0,0.00013698,2]
[354272280,1740384641399,-500.0,0.00013698,2]
[354272281,1740384641408,-500.0,0.00013698,2]
[354272282,1740384641417,-500.0,0.00013698,2]
[354272283,1740384641426,-500.0,0.00013698,2]
[354272284,1740384641435,-500.0,0.00013698,2]
[354272285,1740384641444,-500.0,0.00013698,2]
[354272286,1740384641453,-500.0,0.00013698,2]
[354272287,1740384641462,-501.11836703,0.00013698,2]
[354272288,1740384641471,-501.24530807,0.00013698,2]
[354272289,1740384641480,-500.0,0.00013698,2]
[354272290,1740384641489,-500.0,0.00013698,2]
[354272291,1740384641498,-474.96552166,0.00013698,2]
[354272292,1740384641507,-500.0,0.00013698,2]
[354272293,1740384641516,-500.0,0.00013698,2]
[354272294,1740384641525,-500.0,0.00013698,2]
[354272295,1740384641534,-500.0,0.00013698,2]
[354272296,1740384641544,-500.0,0.00013698,2]
[354272297,1740384641553,-500.0,0.00013698,2]
[354272298,1740384641562,-500.0,0.00013698,2]
[354272299,1740384641571,-500.0,0.00013698,2]
[354272300,1740384641580,-500.0,0.00013698,2]
[354272301,1740384641589,-500.0,0.00013698,2]
[354272302,1740384641598,-500.0,0.00013698,2]
[354272303,1740384641607,-500.0,0.00013698,2]
[354272304,1740384641616,-507.81528032,0.00013698,2]
[354272305,1740384641625,-403.95578779,0.00013698,2]
[354272306,1740384641634,-502.20019724,0.00013698,2]
[354272307,1740384641643,-500.0,0.00013698,2]
[354272308,1740384641652,-502.68226274,0.00013698,2]
[354272309,1740384641661,-500.0,0.00013698,2]
[354272310,1740384641670,-500.0,0.00013698,2]
[354272311,1740384641679,-457.24653084,0.00013698,2]
[354272312,1740384641688,-500.0,0.00013698,2]
[354272313,1740384641697,-500.0,0.00013698,2]
[354272314,1740384641707,-500.0,0.00013698,2]
[354272315,1740384641715,-500.0,0.00013698,2]
[354272316,1740384641725,-637.52408204,0.00013698,2]
[354272317,1740384641734,-815.24,0.00013698,2]
[354272318,1740384641743,-500.0,0.00013698,2]
[354272319,1740384641752,-541.99335899,0.00013698,2]
[354272320,1740384641762,-500.0,0.00013698,2]
[354272321,1740384641771,-500.0,0.00013698,2]
[354272322,1740384641780,-500.0,0.00013698,2]
[354272323,1740384641789,-500.0,0.00013698,2]
[354272324,1740384641799,-503.0237735,0.00013698,2]
[354272325,1740384641807,-501.56969731,0.00013698,2]
[354272326,1740384641817,-500.0,0.00013698,2]
[354272327,1740384641826,-500.0,0.00013698,2]
[354272328,1740384641835,-500.0,0.00013698,2]
[354272329,1740384641845,-500.0,0.00013698,2]
[354272330,1740384641854,-500.0,0.00013698,2]
[354272331,1740384641863,-500.0,0.00013698,2]
[354272332,1740384641873,-500.0,0.00013698,2]
[354272333,1740384641882,-500.0,0.00013698,2]
[354272334,1740384641891,-537.60156162,0.00013698,2]
[354272335,1740384641901,-500.0,0.00013698,2]
[354272336,1740384641910,-496.81108786,0.00013698,2]
[354272337,1740384641919,-500.0,0.00013698,2]
[354272338,1740384641929,-500.0,0.00013698,2]
[354272339,1740384641939,-500.0,0.00013698,2]
[354272340,1740384641948,-500.0,0.00013698,2]
[354272341,1740384641958,-500.0,0.00013698,2]
[354272342,1740384641971,-500.0,0.00013698,2]
[354272343,1740384641981,-500.0,0.00013698,2]
[354272344,1740384641990,-500.0,0.00013698,2]
[354272345,1740384641999,-500.0,0.00013698,2]
[354272346,1740384642009,-500.0,0.00013698,2]
[354272347,1740384642018,-500.0,0.00013698,2]
[354272348,1740384642027,-500.0,0.00013698,2]
[354272349,1740384642036,-500.0,0.00013698,2]
[354272350,1740384642046,-534.39338912,0.00013698,2]
[354272351,1740384642055,-518.94,0.00013698,2]
[354272352,1740384642064,-500.0,0.00013698,2]
[354272353,1740384642073,-500.0,0.00013698,2]
[354272354,1740384642082,-500.0,0.00013698,2]
[354272355,1740384642091,-500.0,0.00013698,2]
[354272356,1740384642101,-500.0,0.00013698,2]
[354272357,1740384642110,-500.0,0.00013698,2]
[354272358,1740384642119,-500.0,0.00013698,2]
[354272359,1740384642129,-500.0,0.00013698,2]
[354272360,1740384642138,-500.0,0.00013698,2]
[354272361,1740384642147,-500.0,0.00013698,2]
[354272362,1740384642156,-500.0,0.00013698,2]
[354272363,1740384642165,-434.72,0.00013698,2]
[354272364,1740384642175,-500.0,0.00013698,2]
[354272365,1740384642184,-500.0,0.00013698,2]
[354272366,1740384642193,-558.43,0.00013698,2]
[354272367,1740384642202,-1276.8,0.00013698,2]
[354272368,1740384642212,-500.0,0.00013698,2]
[354272369,1740384642220,-500.0,0.00013698,2]
[354272370,1740384642230,-500.0,0.00013698,2]
[354272371,1740384642239,-500.0,0.00013698,2]
[354272372,1740384642248,-500.0,0.00013698,2]
[354272373,1740384642257,-500.0,0.00013698,2]
[354272374,1740384642266,-500.0,0.00013698,2]
[354272375,1740384642275,-500.0,0.00013698,2]
[354272376,1740384642284,-500.0,0.00013698,2]
[354272377,1740384642294,-500.0,0.00013698,2]
[354272378,1740384642303,-500.0,0.00013698,2]
[354272379,1740384642311,-500.0,0.00013698,2]
[354272380,1740384642321,-500.0,0.00013698,2]
[354272381,1740384642329,-500.0,0.00013698,2]
[354272382,1740384642338,-500.0,0.00013698,2]
[354272383,1740384642348,-500.0,0.00013698,2]
[354272384,1740384642357,-500.0,0.00013698,2]
[354272385,1740384642366,-500.0,0.00013698,2]
[354272386,1740384642375,-500.0,0.00013698,2]
[354272387,1740384642385,-500.0,0.00013698,2]
[354272388,1740384642394,-500.0,0.00013698,2]
[354272389,1740384642403,-500.0,0.00013698,2]
[354272390,1740384642412,-500.0,0.00013698,2]
[354272391,1740384642421,-505.92690976,0.00013698,2]
[354272392,1740384642430,-500.0,0.00013698,2]
[354272393,1740384642439,-481.26120154,0.00013698,2]
[354272394,1740384642448,-500.0,0.00013698,2]
[354272395,1740384642457,-863.92,0.00013698,2]
[354272396,1740384642466,-503.53314938,0.00013698,2]
[354272397,1740384642475,-500.0,0.00013698,2]
[354272398,1740384642484,-500.0,0.00013698,2]
[354272399,1740384642493,-500.0,0.00013698,2]
[354272400,1740384642502,-515.12839617,0.00013698,2]
[354272401,1740384642511,-500.0,0.00013698,2]
[354272402,1740384642520,-872.82,0.00013698,2]
[354272403,1740384642529,-500.0,0.00013698,2]
[354272404,1740384642538,-500.0,0.00013698,2]
[354272405,1740384642547,-500.0,0.00013698,2]
[354272406,1740384642556,-500.0,0.00013698,2]
[354272407,1740384642565,-500.0,0.00013698,2]
[354272408,1740384642574,-500.0,0.00013698,2]
[354272409,1740384642583,-500.0,0.00013698,2]
[354272410,1740384642592,-500.0,0.00013698,2]
[354272411,1740384642602,-500.0,0.00013698,2]
[354272412,1740384642611,-342.87776324,0.00013698,2]
[354272413,1740384642620,-500.0,0.00013698,2]
[354272414,1740384642629,-4826.4,0.00013698,2]
[354272415,1740384642638,-500.0,0.00013698,2]
[354272416,1740384642648,-500.0,0.00013698,2]
[354272417,1740384642657,-500.0,0.00013698,2]
[354272418,1740384642666,-500.0,0.00013698,2]
[354272419,1740384642675,-1101.42,0.00013698,2]
[354272420,1740384642684,-500.0,0.00013698,2]
[354272421,1740384642693,-607.89,0.00013698,2]
[354272422,1740384642702,-514.64547154,0.00013698,2]
[354272423,1740384642711,-500.0,0.00013698,2]
[354272424,1740384642721,-500.0,0.00013698,2]
[354272425,1740384642730,-15079.39,0.00013698,2]
[354272426,1740384642739,-500.0,0.00013698,2]
[354272427,1740384642748,-500.0,0.00013698,2]
[354272428,1740384642757,-500.0,0.00013698,2]
[354272429,1740384642766,-2237.64,0.00013698,2]
[354272430,1740384642775,-500.0,0.00013698,2]
[354272431,1740384642785,-973.7,0.00013698,2]
[354272432,1740384642794,-500.0,0.00013698,2]
[354272433,1740384642803,-500.0,0.00013698,2]
[354272434,1740384642813,-546.79,0.00013698,2]
[354272435,1740384642822,-1624.3,0.00013698,2]
[354272436,1740384642831,-500.0,0.00013698,2]
[354272437,1740384642841,-178.7874689,0.00013698,2]
[354272438,1740384642851,-500.0,0.00013698,2]
[354272439,1740384642860,-500.0,0.00013698,2]
[354272440,1740384642869,-500.0,0.00013698,2]
[354272441,1740384642878,-500.0,0.00013698,2]
[354272442,1740384642887,-500.0,0.00013698,2]
[354272443,1740384642896,-500.0,0.00013698,2]
[354272444,1740384642906,-1134.38,0.00013698,2]
[354272445,1740384642915,-500.0,0.00013698,2]
[354272446,1740384642924,-1297.23,0.00013698,2]
[354272447,1740384642934,-500.0,0.00013698,2]
[354272448,1740384642943,-500.0,0.00013698,2]
[354272449,1740384642952,-5088.68,0.00013698,2]
[354272450,1740384642966,-500.0,0.00013698,2]
[354272451,1740384642975,-500.0,0.00013698,2]
[354272452,1740384642984,-501.81,0.00013698,2]
[354272453,1740384642994,-500.0,0.00013698,2]
[354272454,1740384643003,-500.0,0.00013698,2]
[354272455,1740384643012,-545.23941038,0.00013698,2]
[354272456,1740384643021,-505.39,0.00013698,2]
[354272457,1740384643031,-735.9,0.00013698,2]
[354272458,1740384643040,-500.0,0.00013698,2]
[354272459,1740384643049,-500.0,0.00013698,2]
[354272460,1740384643058,-659.95,0.00013698,2]
[354272461,1740384643067,-500.0,0.00013698,2]
[354272463,1740384643076,-824.51,0.00013698,2]
[354272465,1740384643085,-500.0,0.00013698,2]
[354272467,1740384643095,-500.0,0.00013698,2]
[354272469,1740384643104,-179.69451932,0.00013699,2]
[354272473,1740384643113,-178.313712,0.00013699,2]
[354272477,1740384643123,-1335.11574,0.00013699,2]
[354272480,1740384643132,-557.1539086,0.000137,2]
[354272482,1740384643141,-557.4308118,0.000137,2]
[354272484,1740384643150,-151.0,0.000137,2]
[354272487,1740384643159,-151.0,0.000137,2]
[354272490,1740384643168,-556.5471852,0.000137,2]
[354272493,1740384643177,-363.6520511,0.000137,2]
[354272496,1740384643186,-185.9102579,0.000137,2]
[354272498,1740384643196,-993.58112175,0.00013718,2]
[354272500,1740384643205,-195.1809678,0.00013719,2]
[354272502,1740384643214,-500.0,0.00013762,2]
[354272516,1740384643294,-500.0,0.00013762,2]
[354272519,1740384643312,-500.0,0.00013762,2]
[354272521,1740384643322,-500.0,0.00013772,2]
[354272523,1740384643331,-500.0,0.00013773,2]
[354272525,1740384643340,-500.0,0.00013773,2]
[354272527,1740384643348,-615.73186443,0.00013773,2]
[354272529,1740384643358,-500.0,0.00013779,2]
[354272531,1740384643367,-500.0,0.00013779,2]
[354272533,1740384643376,-278.18,0.00013779,2]
[354272535,1740384643385,-500.0,0.0001378,2]
[354272536,1740384643394,-498.80184552,0.0001378,2]
[354272538,1740384643403,-222.36269552,0.0001378,2]
[354272540,1740384643411,-456.12076908,0.0001378,2]
[354272541,1740384643420,-501.9847316,0.0001378,2]
[354272542,1740384643429,-500.0,0.0001378,2]
[354272543,1740384643439,-501.09213442,0.0001378,2]
[354272544,1740384643448,-504.15081958,0.0001378,2]
[354272545,1740384643456,-639.86,0.0001378,2]
[354272546,1740384643466,-500.0,0.0001378,2]
[354272547,1740384643475,-500.0,0.0001378,2]
[354272548,1740384643484,-244.89,0.0001378,2]
[354272549,1740384643493,-555.08480055,0.0001378,2]
[354272550,1740384643502,-500.0,0.0001378,2]
[354272551,1740384643511,-605.05935747,0.0001378,2]
[354272552,1740384643520,-500.0,0.0001378,2]
[354272553,1740384643529,-500.0,0.0001378,2]
[354272554,1740384643538,-500.0,0.0001378,2]
[354272555,1740384643548,-500.0,0.0001378,2]
[354272556,1740384643557,-500.0,0.0001378,2]
[354272558,1740384643566,-500.0,0.0001378,2]
[354272559,1740384643575,-500.0,0.0001378,2]
[354272560,1740384643585,-500.0,0.0001378,2]
[354272561,1740384643593,-468.04079161,0.0001378,2]
[354272562,1740384643602,-500.0,0.0001378,2]
[354272563,1740384643611,-500.85511461,0.0001378,2]
[354272564,1740384643621,-500.0,0.0001378,2]
[354272565,1740384643636,-500.0,0.0001378,2]
[354272566,1740384643645,-412.39915208,0.0001378,2]
[354272567,1740384643654,-500.0,0.0001378,2]
[354272568,1740384643664,-500.0,0.0001378,2]